Cogmind - Beta 14 @@@ ROGUE MODE // 2024.11.09 @ 21:12:24 Player: jimmyl Result: Self-destructed Performance ------------- Evolutions (1) 500 Regions Visited (3) 600 Robots Destroyed (47) 235 Value Destroyed (873) 873 Prototype IDs (2) 40 Alien Tech Used (0) 0 Bonus (16) 16 TOTAL SCORE: 2264 Bonus ------- High Alert Combat Kills 16 Cogmind --------- Core Integrity 50/400 Matter 212/300 Energy 100/100 System Corruption 0% Temperature Cool (0) Movement Core (1350) Ox26 Location -9/Mines Parts ------- > --- POWER (1) -------- (None) > --- PROPULSION (2) --- (None) > --- UTILITY (4) ------ Huge Storage Unit > --- WEAPON (2) ------- (None) > --- INVENTORY (25) --- Light Ion Engine High-capacity Matter Pod (63) Signal Interpreter Peak State ------------ > --- POWER ------------ Ion Engine > --- PROPULSION ------- Light Treads Wheel > --- UTILITY ---------- Heat Sink Huge Storage Unit > --- WEAPON ----------- Medium Laser Assault Rifle > --- INVENTORY -------- Light Ion Engine Light Treads High-capacity Matter Pod Signal Interpreter EM Pulse Gun EM Pulse Gun EM Pulse Gun EM Pulse Gun Light Assault Rifle Grenade Launcher [Rating: 8] Favorites ----------- Power Ion Engine Engine Ion Engine Propulsion Light Treads Treads Light Treads Leg Aluminum Leg Wheel Wheel Utility Huge Storage Unit Device Heat Sink Storage Huge Storage Unit Weapon Medium Laser Energy Gun Medium Laser Ballistic Gun Assault Rifle Launcher Grenade Launcher Build | -11 -10 -9 -9 ------- Run | Yrd Mat Mat Min Slots Evolved 2 | . . 2 . Power . | . . . . Propulsion . | . . . . Utility 2 | . . 2 . Weapon . | . . . . Parts Attached 31 | . 15 8 8 Power 2 | . 1 . 1 Engine 2 | . 1 . 1 Core . | . . . . Reactor . | . . . . Propulsion 6 | . 3 3 . Treads 2 | . 1 1 . Leg . | . . . . Wheel 4 | . 2 2 . Hover . | . . . . Flight . | . . . . Utility 4 | . 3 1 . Device 2 | . 2 . . Storage 2 | . 1 1 . Processor . | . . . . Hackware . | . . . . Protection . | . . . . Artifact . | . . . . Weapon 19 | . 8 4 7 Energy Gun 5 | . . 3 2 Energy Cannon . | . . . . Ballistic Gun 8 | . 4 1 3 Ballistic Cannon . | . . . . Launcher 6 | . 4 . 2 Special Weapon . | . . . . Impact Weapon . | . . . . Slashing Weapon . | . . . . Piercing Weapon . | . . . . Special Melee Weapon . | . . . . Unidentified Prototypes . | . . . . Parts Lost 20 | . 2 9 9 Power 3 | . 1 1 1 Propulsion 6 | . 1 3 2 Utility 1 | . . 1 . Weapon 10 | . . 4 6 Highest Loss Streak 8 | . 1 4 8 To Critical Strikes . | . . . . Average Slot Usage (%) 87 | . 96 71 58 Engine 12 | . 13 9 7 Treads 12 | . 13 10 9 Wheel 12 | . 13 8 10 Device 9 | . 11 11 . Storage 13 | . 14 11 11 Energy Gun 11 | . 14 10 1 Ballistic Gun 13 | . 13 10 17 Peak Build Rating 8 | 6 8 8 6 Average Rating 6 | 6 7 6 5 On Entrance 6 | 6 6 8 4 Naked Turns . | . . . . Heaviest Build 91 | 12 91 90 85 Greatest Support 20 | 20 20 20 10 Greatest Overweight (x) 9 | . 9 8 8 Average Overweight (x) 7 | . 7 7 8 Largest Inventory Capacity 25 | 8 25 25 25 Average Capacity 24 | 8 24 25 25 Most Carried 11 | 6 11 10 6 Average Carried 7 | 6 7 8 5 Final Capacity 25 | 8 25 25 25 Final Carried 10 | 6 10 6 3 Class Distribution -------------------- 91% | Mutant 8% | Scavenger-Mutant Dominant Class ---------------- Mutant | -10/Materials Mutant | -9/Materials Scavenger-Mutant | -9/Mines Resources | -11 -10 -9 -9 ----------- Run | Yrd Mat Mat Min Matter Collected 702 | 196 334 171 1 Remotely . | . . . . Salvage Created 966 | . 267 570 129 Parts 94 | . 45 37 12 Haulers Intercepted . | . . . . Recyclers Shooed . | . . . . Parts Field Recycled . | . . . . Retrieved Matter . | . . . . Parts Self-Destructed . | . . . . Prevented . | . . . . Kills | -11 -10 -9 -9 ------- Run | Yrd Mat Mat Min Combat Hostiles Destroyed 32 | . 15 11 6 Guns 14 | . 2 10 2 AOE 18 | . 13 1 4 Classes Destroyed 9 | . 6 2 1 Worker 4 | . 2 2 . Builder 4 | . 2 1 1 Tunneler 1 | . . 1 . Recycler 1 | . . 1 . Mechanic 1 | . 1 . . Watcher 4 | . 3 1 . Swarmer 17 | . 9 4 4 Grunt 14 | . 6 7 1 Duelist 1 | . . . 1 Best Kill Streak 12 | . 12 6 10 Combat Bots Only 8 | . 8 6 4 Max Kills in Single Turn 3 | . 2 3 3 Gunslinging . | . . . . Exploded 3 | . 2 1 3 Melee . | . . . . Uniques/NPCs Destroyed . | . . . . Combat | -11 -10 -9 -9 -------- Run | Yrd Mat Mat Min Hostile Shots Fired 167 | . 50 83 34 Missed 50 | . 15 29 6 Damage Taken 1760 | . 434 712 614 Core 416 | . 66 95 255 Absorbed by Shields . | . . . . Core Remaining (%) 86 | 100 73 . . Volleys Fired 95 | . 29 45 21 Largest 2 | . 2 2 2 Hottest 80 | . 70 80 60 Shots Fired 153 | . 43 78 32 Gun 135 | . 28 78 29 Cannon . | . . . . Launcher 18 | . 15 . 3 Special . | . . . . Kinetic 79 | . 14 43 22 Thermal 26 | . 14 12 . Explosive 18 | . 15 . 3 Electromagnetic 30 | . . 23 7 Robot Hit Streak 14 | . 6 10 14 Robot Miss Streak 4 | . 3 4 1 Penetration Max . | . . . . Secondary Targets 5 | . . 5 . Max Gunslinging Chain 1 | . . 1 . Shots Hit Robots 107 | . 25 58 24 Core Hits 67 | . 27 26 14 Critical Kills 1 | . . 1 . Critical Parts Destroyed . | . . . . Critical Strikes 4 | . . 4 . Burn 3 | . . 3 . Destroy 1 | . . 1 . Melee Attacks . | . . . . Impact . | . . . . Slashing . | . . . . Piercing . | . . . . Sneak Attacks . | . . . . Combat Hostiles . | . . . . Follow-up Attacks . | . . . . Damage Inflicted 3027 | . 1654 807 566 Guns 1078 | . 205 671 202 Cannons . | . . . . Explosions 1949 | . 1449 136 364 Melee . | . . . . Ramming . | . . . . Kinetic 559 | . 92 334 133 Thermal 845 | . 484 250 111 Explosive 1331 | . 1078 . 253 Electromagnetic 292 | . . 223 69 Impact . | . . . . Slashing . | . . . . Piercing . | . . . . Highest Corruption . | . . . . Average Corruption . | . . . . Corruption Purged . | . . . . Corruption Blocked . | . . . . Overload Shots . | . . . . Overflow Damage 230 | . 146 26 58 Projectiles . | . . . . Explosions 230 | . 146 26 58 Melee . | . . . . Knockbacks . | . . . . Impact . | . . . . Kinetic . | . . . . Secondary . | . . . . Self-Inflicted Damage 248 | . 105 30 113 Shots 8 | . 4 1 3 Rammed . | . . . . Targets Rammed . | . . . . Kicked . | . . . . Crushed . | . . . . Highest Temperature 78 | . 78 19 32 Average Temperature 23 | . 44 5 11 Received Heat Transfer 522 | . 78 342 102 Siege Activations . | . . . . Robots Corrupted . | . . . . Combat Hostiles . | . . . . Parts Fried 2 | . . 1 1 Impact Corruptions . | . . . . Robots Melted . | . . . . Combat Hostiles . | . . . . Parts Melted 4 | . 3 1 . Heat Transferred 1488 | . 533 805 150 Parts Sabotaged . | . . . . Parts Stolen . | . . . . Parts Stripped . | . . . . Power Chain Reactions 3 | . . 2 1 Alert | -11 -10 -9 -9 ------- Run | Yrd Mat Mat Min Peak Influence 431 | . 431 415 265 Initial 153 | . . 75 153 Average 209 | . 195 233 253 Maximum Alert Level 2 | . 2 2 1 Low Security (%) 41 | 100 51 27 1 Level 1 50 | . 39 63 98 Level 2 7 | . 8 9 . Level 3 . | . . . . Level 4 . | . . . . Level 5 . | . . . . High Security . | . . . . Max Security . | . . . . Squads Dispatched 2 | . 2 . . Investigation 1 | . 1 . . Extermination . | . . . . Reinforcement 1 | . 1 . . Assault . | . . . . Garrison . | . . . . Intercept . | . . . . Searches Triggered . | . . . . Construction Impeded . | . . . . Haulers Reinforced . | . . . . Active Scanning Responses . | . . . . Cargo Convoy Interrupts . | . . . . Stealth | -11 -10 -9 -9 --------- Run | Yrd Mat Mat Min Distress Signals 8 | . 3 5 . Communications Jammed . | . . . . Distress Signals . | . . . . Times Spotted 51 | . 21 23 7 Peak Tracking Total 8 | . 7 8 4 Tactical Retreats 3 | . . 3 . Traps | -11 -10 -9 -9 ------- Run | Yrd Mat Mat Min Traps Triggered 1 | . 1 . . Indirectly . | . . . . Trap Hack Attempts . | . . . . Triggered . | . . . . Disarmed . | . . . . Reprogrammed . | . . . . Reused . | . . . . Traps Extracted . | . . . . Installed . | . . . . Triggered . | . . . . Machines | -11 -10 -9 -9 ---------- Run | Yrd Mat Mat Min Machines Disabled 4 | . 2 1 1 Max in Single Turn 2 | . 2 1 1 Machines Repaired . | . . . . Machines Dismantled . | . . . . Machines Sabotaged . | . . . . Overloaded Fab Kills . | . . . . Hacking | -11 -10 -9 -9 --------- Run | Yrd Mat Mat Min Machines Accessed 4 | . 4 . . Terminals 4 | . 4 . . Fabricators . | . . . . Repair Stations . | . . . . Recycling Units . | . . . . Scanalyzers . | . . . . Garrison Access . | . . . . Total Hacks 14 | . 14 . . Successful 7 | . 7 . . Failed 7 | . 7 . . Catastrophic . | . . . . Database Lockouts . | . . . . Manual 4 | . 4 . . Terminals 14 | . 14 . . Fabricators . | . . . . Repair Stations . | . . . . Recycling Units . | . . . . Scanalyzers . | . . . . Garrison Access . | . . . . Terminal Hacks 7 | . 7 . . Robot Analysis 1 | . 1 . . Prototype ID Bank 1 | . 1 . . Alert Level 2 | . 2 . . Locate Traps 2 | . 2 . . Zone Layout 1 | . 1 . . Fabricator Hacks . | . . . . Repair Station Hacks . | . . . . Recycling Unit Hacks . | . . . . Scanalyzer . | . . . . Garrison Access Hacks . | . . . . Unauthorized Hacks . | . . . . Terminals . | . . . . Fabricators . | . . . . Repair Stations . | . . . . Recycling Units . | . . . . Scanalyzers . | . . . . Garrison Access . | . . . . Data Cores Recovered . | . . . . Used . | . . . . Hacking Detections 5 | . 5 . . Full Trace Events . | . . . . Feedback Events . | . . . . Feedback Blocked . | . . . . Robot Schematics Acquired . | . . . . Robots Built . | . . . . Authchips . | . . . . Time . | . . . . Total Robot Build Rating . | . . . . Part Schematics Acquired . | . . . . Parts Built . | . . . . Authchips . | . . . . Time . | . . . . Total Part Build Rating . | . . . . Parts Repaired . | . . . . Time . | . . . . Parts Recycled . | . . . . Recycled Matter . | . . . . Retrieved Matter . | . . . . Retrieved Components . | . . . . Parts Scanalyzed . | . . . . Part Schematics Acquired . | . . . . Parts Damaged . | . . . . Bothacking | -11 -10 -9 -9 ------------ Run | Yrd Mat Mat Min Used RIF Installer . | . . . . Robots Hacked . | . . . . Non-combat . | . . . . Combat . | . . . . Robot Hacks Applied . | . . . . Relay Couplers Released . | . . . . Fabnet Peak Effective % . | . . . . Robots Rewired . | . . . . Allies Hacked . | . . . . Hacks Repelled . | . . . . Allies | -11 -10 -9 -9 -------- Run | Yrd Mat Mat Min Total Allies . | . . . . Largest Group . | . . . . Highest-Rated Group . | . . . . Highest-Rated Ally . | . . . . Total Orders . | . . . . Ally Attacks . | . . . . Total Damage . | . . . . Kills . | . . . . Allies Corrupted . | . . . . Allies Melted . | . . . . Intel | -11 -10 -9 -9 ------- Run | Yrd Mat Mat Min Robot Analysis Total 1 | . 1 . . Derelict Logs Recovered . | . . . . Drone Launches . | . . . . Drone Recoveries . | . . . . Exploration | -11 -10 -9 -9 ------------- Run | Yrd Mat Mat Min Turns Passed 1574 | 2 1074 324 174 Spaces Moved 626 | 2 483 84 57 Core . | . . . . Treads 6 | . . 6 . Legs 23 | 2 21 . . Wheels 597 | . 462 78 57 Hover . | . . . . Flight . | . . . . Fastest Speed 120 | 120 120 200 200 Average Speed 199 | 120 196 220 200 Slowest Speed 480 | 120 215 480 200 Overloaded Moves . | . . . . Propulsion Burnouts . | . . . . Robots Hopped . | . . . . Cave-ins Triggered . | . . . . Exploration Rate (%) 31 | 2 96 16 13 Regions Visited 3 Branch Regions 1 Pre-discovered Areas . | . . . . Known Exits Taken . | . . . . Unknown Exits Taken 3 | 1 1 1 . Scrap Searched . | . . . . Spaces Dug 15 | . . . 15 Terrain Destroyed 116 | . 75 8 33 Melee . | . . . . Projectile . | . . . . AOE 116 | . 75 8 33 Terrain Rammed . | . . . . Walls Destroyed . | . . . . Machines Disabled . | . . . . Actions | -11 -10 -9 -9 --------- Run | Yrd Mat Mat Min Total 802 | 1 562 152 87 Wait 37 | . 24 13 . Move 623 | 1 482 83 57 Hop . | . . . . Pick Up 9 | . 8 1 . Fast Attach 7 | . 2 1 4 Attach 15 | . 4 7 4 Detach 3 | . . 2 1 Swap 9 | . 9 . . Drop 4 | . 4 . . Fire 95 | . 29 45 21 Melee . | . . . . Ram . | . . . . Kick . | . . . . Crush . | . . . . Escape Stasis . | . . . . Rewire . | . . . . Trap . | . . . . Miscellaneous . | . . . . Route ------- -11/Scrapyard -10/Materials (discovered 5 exits: [*Mat x3] / [*Min x2]) -9/Materials -9/Mines History --------- Turn | Location | Event 1 | -11/Scrapyard | Discovered new exit (range 1) 3 | -11/Scrapyard | Entered Materials 335 | -10/Materials | Destroyed 8 combat bots 338 | -10/Materials | Build established: Mutant 367 | -10/Materials | Discovered new exit (range 14) 535 | -10/Materials | Discovered new exit (range 15) 679 | -10/Materials | Discovered new exit (range 14) 793 | -10/Materials | Discovered new exit (range 8) 1061 | -10/Materials | Discovered new exit (range 6) 1077 | -10/Materials | Entered another Materials area 1077 | -9/Materials | Evolved 2 slots: Utility x2 1218 | -9/Materials | Lost 4 parts (2n2w) 1332 | -9/Materials | Discovered new exit (range 7) 1401 | -9/Materials | Entered Mines 1415 | -9/Mines | Met a Derelict bent on vengeance 1435 | -9/Mines | Lost 4 parts (1u3w) 1552 | -9/Mines | Core integrity fell below 50% 1565 | -9/Mines | Core integrity fell below 20% 1575 | -9/Mines | Self-destructed Last Messages --------------- 01422_ Acquired Lgt. Assault Rifle. 01428_ Acquired Lgt. Ion Engine. 01533_ Lgt. Assault Rifle destroyed. 01541_ Lgt. Assault Rifle severed. 01542_ Acquired Lgt. Assault Rifle. 01543_ Lgt. Ion Engine destroyed. 01546_ Lgt. Treads destroyed. 01546_ EM Pulse Gun destroyed. 01552_ Chain reaction triggered in Imp. Ion Engine. 01552_ Destroyed Imp. Aluminum Leg. 01554_ Core Shielding fried. 01554_ L-31 Rogue destroyed. 01558_ EM Pulse Gun destroyed. 01565_ G-34 Mercenary destroyed. 01568_ Wheel destroyed. 01570_ Grenade Launcher destroyed. 01570_ Destroyed Grenade Launcher. 01570_ U-05 Engineer destroyed. 01571_ U-05 Engineer builds a Wall. 01574_ Lgt. Assault Rifle destroyed. Map ----- +----------------------------------------------------+ | | | | | | | | | | | | | ???????????????????????????????? | | ???????????????????????????????? | | ???????????????????????????????? | | ???????????????????????????????? | | ???????????????????????????????? | | ??????##???????????????????????? | | ?????? ???????????????????????? | | ?????? ??????????????????????? | | ?????? ??????????????????????? | | ?????? "??????????????????????? | | ?????? "???????????????######## | | ?????? "???????????????# """ | | ?????? ???????????????# " | | ??????# #??????####?????# = | | ?????## #?????## ##????# | | ????## ###?### #????# *= | | ????? ### #????# | | ????## ! ## """ #????# | | ????# %%g ## """ #????# ## ## | | ????# @=### """ #????# #? | | ????# =%u #????# ## # | | ????## |### ##??### #### # | | ?????####### ##???# #??? | | ?????????# ##????# ###??? # | | ?????????# ##????# #????? # | | ?????????# ###### #????? # | | ?????????## #?????## | | ??????????## ####??????? | | ???????????## ### ##?????????? | | ????????????#####?###??????????? | | ???????????????????????????????? | | ???????????????????????????????? | | ???????????????????????????????? | | ???????????????????????????????? | | ???????????????????????????????? | | ???????????????????????????????? | | ???????????????????????????????? | | ???????????????????????????????? | | ???????????????????????????????? | | ???????????????????????????????? | | ???????????????????????????????? | | ???????????????????????????????? | | ???????????????????????????????? | | ???????????????????????????????? | +----------------------------------------------------+ Best States ------------- Heat Dissipation 38 Energy Generation 10 Energy Capacity 250 Matter Stores 300 Matter Capacity 300 Sight Range 16 Terrain Scan Density 10 Evasion (%) 45 Recoil Reduction 1 Item Schematics ----------------- None Robot Schematics ------------------ None Fabricated ------------ Nothing Alien Tech Used ----------------- None Achievements -------------- None Challenges ------------ None Game ------ Seed MomentumBiocellArmor Manual? 0 Play Time 00:09:23 Cumulative 153.5 hours Start 2024.11.09 @ 21:03:18 End 2024.11.09 @ 21:12:24 Sessions 1 Manual Loads 0 Difficulty Rogue Special Mode None Game No. 255 Rogue 254 Adventurer 1 Explorer 0 Win Type - Total 2 Types 2/0/0/0/0/0/0/0/0 Lore% 74 Gallery% 71 Achievement% 53 Wizard Run 0 Options --------- Layout 1 ASCII 0 Keyboard 0 Movement Mouse Keybinds 0 Fullscreen 2 Font 20/SmallcapsGlow Map View 54x42 Zoom Use 0% Tactical HUD 1 Map Filters NONE Filters NONE Steam 0 RUN: 2c075fbe-d0ca-45b8-80c1-f9df489c10f0